bitfinex-derivatives/quotes_SOLF0:USTF0_20250929
["timestamp","ask_amount","ask_price","bid_price","bid_amount"]
[1759104509075,7.46,210.11,210.03,7.96]
[1759104509473,4.282,210.09,209.97,7.96]
[1759104509778,4.282,210.09,209.98,25.66]
[1759104509779,7.46,210.08,209.98,25.66]
[1759104510673,7.46,210.08,209.99,7.96]
[1759104511682,7.46,210.08,209.99,12.244]
[1759104512775,7.46,210.08,210.01,4.2836]
[1759104513186,7.46,210.08,210.0,7.96]
[1759104514480,7.46,210.1,209.97,7.96]
[1759104515691,7.46,210.1,210.01,4.2834]
[1759104515891,7.46,210.1,210.0,7.96]
[1759104517193,4.282,210.09,210.0,12.2436]
[1759104517391,7.46,210.1,210.0,12.2436]
[1759104517590,7.46,210.1,210.0,7.96]
[1759104518591,7.46,210.07,209.91,7.96]
[1759104518794,7.46,210.05,209.91,7.96]
[1759104519196,7.46,210.05,209.92,4.2854]
[1759104519798,4.2839,210.0,209.92,4.2854]
[1759104520299,7.46,210.01,209.92,4.2854]
[1759104520698,11.7438,210.01,209.92,4.2854]
[1759104520893,11.7438,210.01,209.92,122.9454]
[1759104522594,11.7438,210.01,209.92,4.2854]
[1759104522795,7.46,210.01,209.94,4.2849]
[1759104526299,7.46,210.01,209.95,118.54]
[1759104528301,7.46,210.01,209.94,4.2849]
[1759104528502,7.46,210.12,209.96,7.96]
[1759104528703,7.46,210.1,209.96,7.96]
[1759104528907,7.46,210.08,209.96,7.96]
[1759104529408,7.46,210.08,210.0,7.96]
[1759104529603,7.46,210.07,209.91,7.96]
[1759104529907,7.46,210.05,209.91,7.96]
[1759104530207,7.46,210.01,209.92,4.2853]
[1759104530809,7.46,210.01,209.94,7.96]
[1759104531107,7.46,210.01,209.94,126.58]
[1759104531305,7.46,210.01,209.94,7.96]
[1759104533205,7.46,210.01,209.94,12.2449]
[1759104533410,7.46,210.01,209.94,130.8049]
[1759104534813,7.46,210.01,209.94,7.96]
[1759104535314,11.7437,210.01,209.94,7.96]
[1759104535906,12.064,210.0,209.9,7.5]
[1759104536113,7.78,210.0,209.9,7.5]
[1759104536310,66.6386,210.0,209.89,14.51006806]
[1759104536608,66.6386,210.0,209.88,51.22898592]
[1759104536609,7.78,209.99,209.88,51.22898592]
[1759104536812,7.78,209.96,209.88,51.22898592]
[1759104537010,7.78,209.96,209.88,0.82898592]
[1759104537515,12.0648,209.96,209.88,0.82898592]
[1759104538710,7.78,209.96,209.88,0.82898592]
[1759104539010,7.78,209.96,209.88,119.30898592]
[1759104540015,7.78,209.96,209.89,7.5]
[1759104540714,7.78,209.96,209.89,26.21358654]
[1759104540915,7.78,209.96,209.9,118.44]
[1759104542419,7.78,209.96,209.89,21.92748654]
[1759104542720,7.78,209.96,209.88,0.82898592]
[1759104543614,12.0648,209.96,209.88,0.82898592]
[1759104544612,12.0648,209.96,209.88,15.31714314]
[1759104545008,12.0648,209.96,209.88,0.82898592]
[1759104545222,12.0648,209.96,209.86,108.6]
[1759104545419,12.0648,209.96,209.85,12.61600442]
[1759104545717,12.0648,209.96,209.86,122.6465]
[1759104545919,12.0648,209.96,209.86,4.2865]
[1759104546118,12.0648,209.96,209.86,122.6265]
[1759104547220,7.78,209.95,209.85,7.5]
[1759104547417,7.78,209.95,209.85,21.89307447]
[1759104547618,7.78,209.95,209.85,7.5]
[1759104548315,7.78,209.95,209.87,7.5]
[1759104548522,7.78,210.02,209.9,7.5]
[1759104548726,2.67203046,210.01,209.92,7.5]
[1759104549022,10.45203046,210.0,209.92,11.7854]
[1759104549210,7.78,210.0,209.92,7.5]
[1759104549415,7.78,209.98,209.9,118.68]
[1759104550015,7.78,209.98,209.9,122.9657]
[1759104550217,7.78,209.98,209.9,4.2857]
[1759104550921,7.78,209.98,209.91,4.2855]
[1759104551123,7.78,209.98,209.92,7.5]
[1759104552019,1.28999447,210.03,209.87,62.0]
[1759104552215,7.6,209.99,209.86,7.33]
[1759104552420,7.6,209.97,209.86,7.33]
[1759104552617,7.6,209.95,209.86,7.33]
[1759104552812,11.8849,209.95,209.86,7.33]
[1759104554324,66.6449,209.98,209.86,7.33]
[1759104554325,7.6,209.92,209.86,7.33]
[1759104554524,7.6,209.92,209.84,14.46236107]
[1759104554823,7.6,209.92,209.83,8.15915381]
[1759104555119,7.6,209.9,209.8,4.2878]
[1759104556215,7.6,209.9,209.8,14.40223283]
[1759104556419,7.6,209.98,209.83,7.33]
[1759104556623,7.6,209.96,209.83,7.33]
[1759104556824,7.6,209.94,209.84,4.2871]
[1759104557113,7.6,209.94,209.84,7.33]
[1759104557715,7.6,209.98,209.88,7.33]
[1759104557925,3.81759541,209.97,209.88,7.33]
[1759104558122,7.6,209.98,209.88,7.33]
[1759104558523,7.6,209.98,209.9,4.2858]
[1759104559124,7.6,209.98,209.89,7.33]
[1759104560025,7.6,209.98,209.91,4.2856]
[1759104561327,11.8834,210.02,209.92,11.6153]
[1759104561524,7.14917235,210.01,209.92,11.6153]
[1759104561721,11.8834,210.02,209.92,11.6153]
[1759104561722,7.14917235,210.0,209.92,7.33]
[1759104561921,7.6,210.02,209.93,7.33]
[1759104562322,7.6,210.02,209.95,4.2848]
[1759104562522,23.92,210.06,209.95,7.33]
[1759104562523,31.52,210.06,209.95,7.33]
[1759104562723,7.15056532,210.05,209.95,7.33]
[1759104562918,7.15056532,210.04,209.95,7.33]
[1759104563126,2.63124208,210.03,209.96,118.7]
[1759104563328,3.82271244,210.05,209.96,118.7]
[1759104563528,3.82271244,210.04,209.96,118.7]
[1759104563728,3.82271244,210.05,209.99,11.924]
[1759104563923,3.82271244,210.04,209.99,11.924]
[1759104564124,3.82271244,210.05,209.99,11.924]
[1759104564419,3.82271244,210.05,209.99,4.284]
[1759104564618,3.82271244,210.05,209.99,11.924]
[1759104564824,11.812,210.1,210.01,11.9236]
[1759104565025,7.15234374,210.09,210.01,11.9236]
[1759104565230,3.82256352,210.08,210.01,11.9236]
[1759104565426,3.82256352,210.09,210.01,11.9236]
[1759104565626,3.82256352,210.08,210.01,11.9236]
[1759104565827,3.82256352,210.09,210.01,11.9236]
[1759104566129,7.53,210.17,210.06,7.64]
[1759104566325,7.14906772,210.16,210.06,7.64]
[1759104566524,7.53,210.17,210.06,7.64]
[1759104566525,7.14906772,210.15,210.06,7.64]
[1759104566724,3.82095298,210.14,210.07,4.2824]
[1759104567029,2.63128368,210.16,210.07,4.2824]
[1759104567224,3.32603546,210.15,210.07,4.2824]
[1759104567430,7.53,210.17,210.09,4.2819]
[1759104567628,7.53,210.17,210.09,133.43957232]
[1759104569629,7.53,210.17,210.09,133.37957232]
[1759104569825,7.53,210.17,210.09,119.08]
[1759104570025,7.53,210.17,210.08,7.64]
[1759104570333,7.53,210.17,210.09,119.06]
[1759104570524,11.8104,210.17,210.08,7.64]
[1759104570728,11.8104,210.17,210.08,126.7]
[1759104570929,74.1148,210.17,210.08,7.64]
[1759104571237,11.8112,210.13,210.02,119.0]
[1759104571528,11.8112,210.13,210.03,7.64]
[1759104573837,11.8112,210.13,210.03,22.15064275]
[1759104574137,11.8112,210.13,210.03,7.64]
[1759104574537,11.8112,210.13,210.03,126.6]
[1759104575125,7.53,210.1,210.03,7.64]
[1759104578143,7.53,210.1,210.03,22.11069275]
[1759104578541,4.2817,210.11,210.03,22.11069275]
[1759104579236,11.8112,210.14,210.04,7.64]
[1759104581735,11.8112,210.14,210.06,7.64]
[1759104582135,4.2812,210.14,210.06,7.64]
[1759104583541,4.2814,210.13,210.06,7.64]
[1759104584847,7.53,210.19,210.06,7.64]
[1759104585341,7.53,210.15,210.06,7.64]
[1759104586544,4.281,210.14,210.06,7.64]
[1759104587740,4.281,210.14,210.06,11.9226]
[1759104588041,4.2806,210.17,210.07,7.64]
[1759104588243,4.2806,210.17,210.07,11.9222]
[1759104588545,4.2806,210.17,210.08,7.64]
[1759104589048,4.2806,210.17,210.09,7.64]
[1759104589342,7.53,210.19,210.09,7.64]
[1759104589845,7.53,210.19,210.11,7.64]
[1759104590942,4.2793,210.23,210.08,66.6123]
[1759104591146,4.2793,210.23,210.12,7.64]
[1759104592036,4.2793,210.23,210.14,7.64]
[1759104592343,7.53,210.24,210.14,7.64]
[1759104592344,4.2796,210.21,210.14,7.64]
[1759104593047,4.2796,210.21,210.06,66.6183]
[1759104593048,7.53,210.21,210.05,7.64]
[1759104593345,7.53,210.21,210.07,7.64]
[1759104593942,7.53,210.21,210.08,7.78]
[1759104594550,4.2802,210.19,210.1,4.2818]
[1759104595145,4.2802,210.19,210.11,7.78]
[1759104595941,11.8096,210.21,210.13,7.78]
[1759104597745,11.8096,210.21,210.13,12.061]
[1759104598849,159.4435,210.3,210.15,12.0608]
[1759104599046,4.95008618,210.29,210.15,12.0608]
[1759104599349,4.279,210.24,210.15,12.0608]
[1759104599550,12.129,210.24,210.15,12.0608]
[1759104600250,4.2785,210.27,210.16,7.78]
[1759104600452,4.2785,210.27,210.18,7.78]
[1759104600952,12.1275,210.32,210.19,62.16]
[1759104601256,12.1275,210.32,210.2,7.78]
[1759104601454,4.2777,210.31,210.2,12.0596]
[1759104601754,74.3932,210.3,210.2,7.78]
[1759104602250,7.85,210.28,210.2,7.78]
[1759104602652,4.2787,210.26,210.2,7.78]
[1759104605257,7.85,210.26,210.13,7.78]
[1759104605555,7.85,210.24,210.13,7.78]
[1759104606155,1.64993842,210.23,210.13,7.78]
[1759104606350,66.5593,210.25,210.13,7.78]
[1759104606657,4.2797,210.21,210.13,7.78]
[1759104607448,4.2799,210.2,210.13,7.78]
[1759104607855,66.5593,210.25,210.13,7.78]
[1759104607856,7.85,210.22,210.13,7.78]
[1759104608052,7.85,210.2,210.1,7.78]
[1759104609164,1.65193894,210.19,210.1,7.78]
[1759104609460,7.85,210.2,210.1,7.78]
[1759104609664,7.85,210.24,210.13,7.78]
[1759104609860,1.65206355,210.23,210.13,7.78]
[1759104610060,7.85,210.24,210.13,7.78]
[1759104610261,1.65207364,210.23,210.13,7.78]
[1759104610566,5.93157364,210.22,210.13,7.78]
[1759104610863,4.2795,210.22,210.13,7.78]
[1759104612666,1.66891972,210.21,210.13,7.78]
[1759104612865,4.2795,210.22,210.13,7.78]
[1759104613065,1.66891967,210.21,210.13,7.78]
[1759104613266,4.2795,210.22,210.13,7.78]
[1759104613467,1.66882479,210.21,210.13,7.78]
[1759104613665,4.2795,210.22,210.13,7.78]
[1759104613867,1.6688263,210.21,210.13,7.78]
[1759104614067,4.2795,210.22,210.13,7.78]
[1759104614558,4.2795,210.22,210.13,12.061]
[1759104614762,12.129,210.24,210.13,12.061]
[1759104614964,1.66873209,210.23,210.13,12.061]
[1759104615163,12.129,210.24,210.13,12.061]
[1759104615766,4.2793,210.23,210.13,12.061]
[1759104618772,11.5299,210.2,210.13,7.78]
[1759104619173,7.25,210.2,210.07,37.9631144]
[1759104619375,7.25,210.2,210.08,125.29]
[1759104619775,7.25,210.2,210.07,7.21]
[1759104620074,7.25,210.26,210.11,7.21]
[1759104620273,7.25,210.24,210.11,7.21]
[1759104620876,4.2793,210.23,210.14,7.21]
[1759104622273,4.2795,210.22,210.14,7.21]
[1759104623076,7.25,210.24,210.15,7.21]
[1759104624575,7.25,210.24,210.16,7.29]
[1759104624782,7.36,210.27,210.16,7.29]
[1759104625080,124.8981,210.32,210.19,7.29]
[1759104625081,7.36,210.31,210.19,7.29]
[1759104625275,7.36,210.31,210.21,7.29]
[1759104625581,11.6371,210.34,210.22,118.04]
[1759104625784,7.36,210.34,210.23,7.29]
[1759104626276,7.36,210.4,210.25,7.29]
[1759104626783,11.6359,210.4,210.29,7.29]
[1759104627673,11.6359,210.4,210.29,21.33071971]
[1759104628074,11.6359,210.4,210.3,7.29]
[1759104629876,7.36,210.4,210.3,7.29]
[1759104630277,7.36,210.4,210.3,11.5676]
[1759104630476,7.36,210.4,210.31,7.29]
[1759104632977,66.4995,210.44,210.31,7.29]
[1759104632978,11.6348,210.44,210.31,7.29]
[1759104633380,11.6348,210.44,210.31,69.29]
[1759104633580,11.6348,210.44,210.32,7.29]
[1759104635169,7.36,210.44,210.33,4.2769]
[1759104635371,7.36,210.44,210.34,7.29]
[1759104636378,66.4944,210.45,210.31,88.86]
[1759104637079,7.36,210.4,210.3,125.19]
[1759104637578,4.2758,210.39,210.3,7.29]
[1759104637778,7.36,210.38,210.3,7.29]
[1759104641189,7.36,210.44,210.32,7.29]
[1759104642082,11.635,210.44,210.32,7.29]
[1759104642788,7.36,210.41,210.32,11.5672]
[1759104643291,7.36,210.41,210.32,7.29]
[1759104643292,4.2756,210.4,210.32,7.29]
[1759104643486,7.36,210.39,210.32,7.29]
[1759104645187,11.6352,210.43,210.32,7.29]
[1759104646482,4.2754,210.41,210.32,7.29]
[1759104646685,7.36,210.4,210.32,125.07]
[1759104647295,7.36,210.4,210.32,7.29]
[1759104651095,66.4988,210.44,210.29,14.04071971]
[1759104651294,66.5076,210.41,210.28,0.88836862]
[1759104651596,7.36,210.4,210.28,0.88836862]
[1759104652698,11.6363,210.37,210.28,0.88836862]
[1759104652996,11.6363,210.37,210.29,4.2778]
[1759104653390,4.2759,210.39,210.3,7.29]
[1759104653591,4.2759,210.39,210.3,11.5674]
[1759104654293,7.86,210.38,210.3,7.29]
[1759104654498,66.5109,210.4,210.29,14.44498501]
[1759104654698,7.86,210.39,210.28,0.88836862]
[1759104655597,12.1366,210.35,210.28,0.88836862]
[1759104656697,12.1366,210.35,210.28,15.39889553]
[1759104659903,7.86,210.39,210.29,7.83]
[1759104660499,7.86,210.39,210.31,4.2772]
[1759104660704,7.86,210.39,210.32,7.83]
[1759104661806,7.86,210.39,210.28,23.22889553]
[1759104662011,66.5105,210.4,210.28,23.22889553]
[1759104662207,7.86,210.39,210.28,23.22889553]
[1759104662417,7.86,210.38,210.28,23.22889553]
[1759104663116,4.2762,210.37,210.28,23.22889553]
[1759104663804,4.2765,210.36,210.28,27.50679553]
[1759104664210,12.1365,210.36,210.28,27.50679553]
[1759104664711,12.1365,210.36,210.28,23.22889553]
[1759104664912,4.2768,210.34,210.28,23.22889553]
[1759104666512,4.2768,210.34,210.21,7.83]
[1759104666513,12.1376,210.3,210.21,7.83]
[1759104667013,7.86,210.31,210.22,4.2791]
[1759104667215,7.86,210.31,210.21,22.40808961]
[1759104667516,7.86,210.29,210.21,22.40808961]
[1759104667716,7.86,210.26,210.09,66.607]
[1759104667913,1.67273618,210.25,210.1,125.81]
[1759104668115,7.86,210.24,210.11,7.83]
[1759104668313,4.2792,210.23,210.11,7.83]
[1759104669014,7.86,210.24,210.12,4.2812]
[1759104669221,74.3982,210.31,210.13,7.83]
[1759104669417,7.86,210.29,210.13,7.83]
[1759104669617,1.67223235,210.28,210.14,62.0]
[1759104669817,7.86,210.29,210.14,62.0]
[1759104669818,1.67223235,210.27,210.15,7.83]
[1759104670018,9.53223235,210.26,210.16,118.04]
[1759104670218,7.86,210.26,210.16,118.04]
[1759104670721,7.86,210.26,210.15,7.83]
[1759104670917,1.67139627,210.25,210.15,7.83]
[1759104671121,7.86,210.26,210.15,7.83]
[1759104671122,4.2791,210.23,210.15,7.83]
[1759104672223,12.1386,210.26,210.15,7.83]
[1759104672618,7.86,210.26,210.15,7.83]
[1759104673725,7.86,210.26,210.18,7.34]
[1759104675623,4.2786,210.25,210.18,7.34]
[1759104676323,7.86,210.26,210.18,7.34]
[1759104676723,7.86,210.26,210.18,11.6198]
[1759104677419,7.99,210.3,210.19,4.2796]
[1759104677631,7.99,210.3,210.2,7.34]
[1759104678622,7.99,210.3,210.19,66.5753]
[1759104678927,7.99,210.3,210.18,135.0589]
[1759104678928,7.99,210.3,210.2,7.34]
[1759104679814,12.2676,210.3,210.2,7.34]
[1759104680422,7.99,210.3,210.21,4.2794]
[1759104680622,7.99,210.3,210.2,7.34]
[1759104680823,4.2772,210.32,210.2,7.34]
[1759104681216,7.99,210.34,210.25,7.34]
[1759104681622,7.99,210.34,210.27,4.278]
[1759104681824,55.2761,210.38,210.28,7.34]
[1759104681825,63.2661,210.38,210.28,7.34]
[1759104682024,12.2661,210.38,210.28,7.34]
[1759104683033,12.2661,210.38,210.16,7.34]
[1759104683034,7.99,210.25,210.16,7.34]
[1759104683826,4.2791,210.23,210.16,7.34]
[1759104685122,4.2794,210.21,210.12,7.96]
[1759104685327,7.65,210.2,210.12,7.96]
[1759104685928,4.2799,210.19,210.12,7.96]
[1759104686726,7.65,210.2,210.12,7.96]
[1759104691137,11.9297,210.2,210.12,7.96]
[1759104691836,7.65,210.2,210.12,7.96]
[1759104692038,4.2792,210.23,210.12,7.96]
[1759104692840,4.2794,210.21,210.12,7.96]
[1759104693236,7.65,210.21,210.12,7.96]
[1759104694534,4.2799,210.19,210.12,7.96]
[1759104694839,74.2239,210.2,210.08,14.37459094]
[1759104695036,7.65,210.19,210.07,7.96]
[1759104695237,66.5739,210.2,210.07,7.96]
[1759104695238,11.9307,210.15,210.07,7.96]
[1759104695738,4.2811,210.13,210.07,7.96]
[1759104696138,7.65,210.14,210.03,7.96]
[1759104697137,4.2817,210.11,210.03,7.96]
[1759104697851,11.9317,210.11,210.03,7.96]
[1759104699344,4.2819,210.09,210.03,7.96]
[1759104699541,7.65,210.08,210.02,0.82646852]
[1759104701939,7.65,210.08,209.98,465.62]
[1759104701940,7.65,210.03,209.92,7.96]
[1759104702437,4.2835,210.02,209.92,7.96]
[1759104703238,7.65,210.03,209.92,7.96]
[1759104704541,11.9332,210.03,209.92,7.96]
[1759104705851,11.9332,210.03,209.92,22.525379]
[1759104706242,11.9332,210.03,209.92,26.810679]
[1759104707137,11.9332,210.03,209.93,62.0]
[1759104707550,11.9332,210.03,209.92,26.810679]
[1759104707847,7.65,210.03,209.92,26.810679]
[1759104709049,7.65,210.03,209.94,4.2849]
[1759104709348,7.65,210.03,209.95,7.96]
[1759104710049,7.65,210.03,209.96,4.2845]
[1759104710750,7.65,210.03,209.95,7.96]
[1759104713849,7.7,210.0,209.92,14.565379]
[1759104714051,7.7,210.0,209.91,7.28]
[1759104714350,11.9839,210.0,209.91,7.28]
[1759104716347,7.7,210.01,209.91,21.86035614]
[1759104716546,7.7,210.0,209.9,32.18]
[1759104717151,66.6353,210.01,209.9,32.18]
[1759104717343,7.7,209.99,209.91,7.28]
[1759104718253,7.7,209.99,209.92,4.2852]
[1759104718650,7.7,209.99,209.91,7.28]
[1759104719050,11.984,209.99,209.91,7.28]
[1759104719250,7.7,209.99,209.91,7.28]
[1759104720053,7.7,209.99,209.91,21.47327968]
[1759104720249,7.7,209.99,209.91,7.28]
[1759104720555,7.7,209.99,209.91,4.2854]
[1759104720752,7.7,209.99,209.92,7.28]
[1759104723353,4.2842,209.98,209.92,7.28]
[1759104723755,7.7,209.99,209.92,7.28]
[1759104726356,7.7,210.03,209.92,7.28]
[1759104727362,7.7,209.99,209.92,7.28]
[1759104729860,7.7,209.99,209.91,14.13403081]
[1759104730165,7.7,210.01,209.89,7.28]
[1759104730359,7.7,209.99,209.89,7.28]
[1759104731063,7.7,209.99,209.89,21.83317622]
[1759104731566,4.2843,209.98,209.9,4.2856]
[1759104731864,7.7,209.99,209.9,4.2856]
[1759104732064,7.7,209.99,209.89,21.83317622]
[1759104732065,4.2847,209.96,209.89,21.83317622]
[1759104732254,7.7,209.99,209.89,21.83317622]
[1759104732667,4.2848,209.95,209.89,21.83317622]
[1759104733561,4.2852,209.94,209.89,21.83317622]
[1759104733764,7.9,209.96,209.89,14.55317622]
[1759104734061,7.9,209.96,209.85,99.31]
[1759104734062,7.9,209.93,209.85,99.31]
[1759104734263,1.65688746,209.92,209.85,99.31]
[1759104734461,7.9,209.93,209.85,99.31]
[1759104734667,1.65688681,209.92,209.85,99.31]
[1759104734859,7.9,209.93,209.85,99.31]
[1759104735055,1.65693806,209.92,209.85,99.31]
[1759104735255,7.9,209.93,209.85,99.31]
[1759104735465,1.65708568,209.92,209.85,91.98]
[1759104735665,7.9,209.93,209.85,91.98]
[1759104735666,7.9,209.93,209.86,7.33]
[1759104735858,1.65714281,209.92,209.86,7.33]
[1759104736060,7.9,209.93,209.86,7.33]
[1759104736260,1.65778525,209.92,209.86,7.33]
[1759104736463,7.9,209.9,209.86,7.33]
[1759104737466,9.29454299,209.9,209.86,7.33]
[1759104737656,7.9,209.9,209.86,7.33]
[1759104739060,7.9,209.9,209.85,106.34593708]
[1759104739268,7.9,209.9,209.86,7.33]
[1759104739862,4.2852,209.93,209.86,7.33]
[1759104740075,6.45772249,209.92,209.86,7.33]
[1759104740269,9.4872927,209.91,209.85,106.34593708]
[1759104740567,1.5872927,209.9,209.86,7.33]
[1759104740775,7.9,209.91,209.86,7.33]
[1759104741166,7.9,209.91,209.85,113.67593708]
[1759104741566,7.9,209.91,209.85,117.96263708]
[1759104742673,1.39454299,209.92,209.85,110.63263708]
[1759104742972,4.285,209.94,209.87,7.33]
[1759104743172,1.58861589,209.93,209.87,7.33]
[1759104743472,4.285,209.94,209.87,7.33]
[1759104743675,1.58899094,209.93,209.87,7.33]
[1759104743868,4.285,209.94,209.87,7.33]
[1759104744065,1.58899091,209.93,209.87,7.33]
[1759104744263,4.285,209.94,209.87,7.33]
[1759104744469,1.58934746,209.93,209.87,7.33]
[1759104744666,4.285,209.94,209.87,7.33]
[1759104744977,1.58928779,209.93,209.87,7.33]
[1759104745172,4.285,209.94,209.87,7.33]
[1759104745470,1.58962189,209.93,209.87,7.33]
[1759104745672,4.285,209.94,209.87,7.33]
[1759104745872,1.58962199,209.93,209.87,7.33]
[1759104746068,4.285,209.94,209.87,7.33]
[1759104746269,1.59001235,209.93,209.87,7.33]
[1759104746473,4.285,209.94,209.87,7.33]
[1759104746674,1.59006789,209.93,209.87,7.33]
[1759104746870,4.285,209.94,209.87,7.33]
[1759104747169,7.9,209.95,209.87,7.33]
[1759104747170,1.39454299,209.98,209.87,7.33]
[1759104747377,1.59044084,209.97,209.9,7.32]
[1759104747669,1.39454299,209.98,209.9,7.32]
[1759104747876,1.58296904,209.97,209.9,7.32]
[1759104748075,1.39454299,209.98,209.9,7.32]
[1759104748275,1.58296904,209.97,209.9,7.32]
[1759104748476,1.39454299,209.98,209.9,7.32]
[1759104748672,5.06480331,209.97,209.9,7.32]
[1759104748876,1.5830818,209.96,209.9,7.32]
[1759104749077,1.39454299,209.98,209.9,7.32]
[1759104749278,5.86773472,209.97,209.9,7.32]
[1759104749477,1.58323472,209.96,209.9,7.32]
[1759104749670,4.2845,209.97,209.9,7.32]
[1759104749975,1.58323752,209.96,209.9,7.32]
[1759104750275,4.2845,209.97,209.9,7.32]
[1759104750671,5.67904299,209.97,209.9,7.32]
[1759104755676,1.39454299,209.97,209.9,7.32]
[1759104755981,1.39454299,210.01,209.93,7.32]
[1759104756282,12.2944,209.97,209.9,7.32]
[1759104756478,8.01,209.94,209.86,7.32]
[1759104756781,1.39454299,209.92,209.86,7.32]
[1759104756974,1.39454299,209.93,209.86,7.32]
[1759104758582,5.67984299,209.93,209.86,7.32]
[1759104762183,4.2853,209.93,209.86,7.32]
[1759104762382,4.2856,209.91,209.86,7.32]
[1759104762688,4.2856,209.91,209.85,18.65263708]
[1759104762879,8.01,209.93,209.86,7.32]
[1759104763688,4.2856,209.92,209.86,7.32]
[1759104767895,4.2857,209.91,209.86,7.32]
[1759104768395,12.2957,209.91,209.85,21.68593708]
[1759104769496,4.2857,209.91,209.86,7.32]
[1759104769799,10.18846923,209.99,209.88,7.32]
[1759104769987,4.66347523,209.98,209.88,7.32]
[1759104770192,4.66347523,209.97,209.88,7.32]
[1759104770394,11.4831105,209.96,209.88,7.32]
[1759104770594,4.2851,209.94,209.88,7.32]
[1759104771097,8.01,209.96,209.88,7.32]
[1759104771290,4.6655651,209.95,209.88,7.32]
[1759104771491,8.01,209.96,209.88,7.32]
[1759104771691,4.66537407,209.95,209.88,7.32]
[1759104771893,4.2855,209.92,209.88,7.32]
[1759104772200,8.01,209.92,209.85,132.48593708]
[1759104772886,8.01,209.92,209.85,139.80593708]
[1759104773502,4.2856,209.91,209.85,132.48593708]
[1759104773797,4.2856,209.91,209.85,139.80593708]
[1759104773994,12.2052,209.93,209.86,7.32]
[1759104775595,12.2052,209.93,209.86,11.6064]
[1759104777702,7.92,209.93,209.89,7.32]
[1759104778998,7.92,209.97,209.89,7.32]
[1759104779194,4.66944422,209.96,209.89,7.32]
[1759104779399,4.66944422,209.95,209.89,7.32]
[1759104779601,8.95454422,209.94,209.88,11.606]
[1759104779798,4.2851,209.94,209.88,11.606]
[1759104780204,12.2046,209.96,209.88,11.606]
[1759104780504,3.47907214,209.95,209.88,11.606]
[1759104780699,12.2046,209.96,209.88,11.606]
[1759104780899,3.47924648,209.95,209.88,11.606]
[1759104781204,3.47924289,209.94,209.88,11.606]
[1759104781506,4.2849,209.95,209.88,11.606]
[1759104781701,4.66977087,209.94,209.88,11.606]
[1759104781902,4.2849,209.95,209.88,11.606]
[1759104782205,3.4792422,209.94,209.88,11.606]
[1759104782408,4.2849,209.95,209.88,11.606]
[1759104782606,3.47983272,209.94,209.89,4.2858]